[Event "GrandPrix_30.05"]
[Site "Chess.com"]
[Date "2020.05.30"]
[Round "6"]
[White "DenLaz"]
[Black "LazovT"]
[Result "1-0"]
[WhiteElo "2559"]
[BlackElo "2268"]
[TimeControl "600+2"]
[EndTime "10:55:29 PDT"]
[Termination "DenLaz won by resignation"]

1. d4 {[%clk 0:09:42.9]} 1... d6 {[%clk 0:10:01.9]} 2. Nf3 {[%clk 0:09:42.8]}
2... Nf6 {[%clk 0:10:01.7]} 3. c4 {[%clk 0:09:42.9]} 3... g6 {[%clk 0:10:02.8]}
4. g3 {[%clk 0:09:42.2]} 4... Bg7 {[%clk 0:10:04.3]} 5. Bg2 {[%clk 0:09:43.6]}
5... O-O {[%clk 0:10:05.6]} 6. Nc3 {[%clk 0:09:43.7]} 6... Nc6 {[%clk
0:10:05.2]} 7. O-O {[%clk 0:09:42.7]} 7... e5 {[%clk 0:10:06.7]} 8. d5 {[%clk
0:09:41.2]} 8... Nb8 {[%clk 0:10:07.8]} 9. e4 {[%clk 0:09:42.2]} 9... a5 {[%clk
0:10:08.8]} 10. Ne1 {[%clk 0:09:42.9]} 10... Na6 {[%clk 0:10:09.9]} 11. a3
{[%clk 0:09:44.4]} 11... Nd7 {[%clk 0:09:28.7]} 12. Rb1 {[%clk 0:09:12.3]} 12...
f5 {[%clk 0:09:19.5]} 13. b4 {[%clk 0:09:08]} 13... Nf6 {[%clk 0:09:16.2]} 14.
Nd3 {[%clk 0:09:05]} 14... Kh8 {[%clk 0:07:26.5]} 15. Bd2 {[%clk 0:08:51.8]}
15... fxe4 {[%clk 0:06:50.6]} 16. Nxe4 {[%clk 0:08:47.9]} 16... Bg4 {[%clk
0:06:44]} 17. Qc2 {[%clk 0:08:42.4]} 17... axb4 {[%clk 0:06:42.2]} 18. axb4
{[%clk 0:08:41.6]} 18... Nxe4 {[%clk 0:06:06.7]} 19. Bxe4 {[%clk 0:08:38.6]}
19... Bf3 {[%clk 0:06:07.9]} 20. Rfe1 {[%clk 0:08:35.2]} 20... Qd7 {[%clk
0:06:08.3]} 21. Bc3 {[%clk 0:08:22.7]} 21... Qh3 {[%clk 0:06:04.6]} 22. Bxf3
{[%clk 0:08:21.7]} 22... Rxf3 {[%clk 0:06:06.5]} 23. b5 {[%clk 0:08:03.2]} 23...
Nb8 {[%clk 0:05:27.7]} 24. Ra1 {[%clk 0:07:43.8]} 24... Rxa1 {[%clk 0:05:27.9]}
25. Rxa1 {[%clk 0:07:45.7]} 25... Nd7 {[%clk 0:05:27.5]} 26. Ra8+ {[%clk
0:07:42.6]} 26... Rf8 {[%clk 0:05:27.1]} 27. Ra7 {[%clk 0:07:38.8]} 27... Nf6
{[%clk 0:05:24.7]} 28. f3 {[%clk 0:07:28.7]} 28... Bh6 {[%clk 0:04:06.9]} 29.
Qe2 {[%clk 0:07:15.4]} 29... Ng4 {[%clk 0:03:52.4]} 30. f4 {[%clk 0:07:10.8]}
30... Bxf4 {[%clk 0:03:39.2]} 31. Nxf4 {[%clk 0:06:17.5]} 31... Rxf4 {[%clk
0:03:21.4]} 32. gxf4 {[%clk 0:06:08.6]} 32... Qxc3 {[%clk 0:03:10.3]} 33. Ra8+
{[%clk 0:06:06.6]} 33... Kg7 {[%clk 0:03:11.5]} 34. Qxg4 {[%clk 0:06:08]} 34...
Qe1+ {[%clk 0:02:27.6]} 35. Kg2 {[%clk 0:06:07.5]} 35... Qd2+ {[%clk 0:02:27.5]}
36. Kh3 {[%clk 0:05:56.5]} 36... exf4 {[%clk 0:02:04.7]} 37. Re8 {[%clk
0:05:36.8]} 37... Qc3+ {[%clk 0:01:50.4]} 38. Kg2 {[%clk 0:05:35.4]} 38... Qxc4
{[%clk 0:01:51.4]} 39. Qf3 {[%clk 0:04:29.5]} 39... h5 {[%clk 0:01:10.2]} 40.
Re4 {[%clk 0:04:20.8]} 40... Qc2+ {[%clk 0:00:52.9]} 41. Qe2 {[%clk 0:03:57]}
41... Qc1 {[%clk 0:00:39.2]} 42. Rc4 {[%clk 0:03:47.6]} 42... Qa3 {[%clk
0:00:25]} 43. Rxc7+ {[%clk 0:03:46.8]} 43... Kh6 {[%clk 0:00:26.4]} 44. Qf2
{[%clk 0:03:41.8]} 44... Qa4 {[%clk 0:00:18.4]} 45. Re7 {[%clk 0:03:31.4]} 45...
Kg5 {[%clk 0:00:15.6]} 46. h4+ {[%clk 0:03:06.7]} 46... Kg4 {[%clk 0:00:14.1]}
47. Re6 {[%clk 0:03:05.5]} 47... Kf5 {[%clk 0:00:11.1]} 48. Re8 {[%clk
0:03:04.4]} 48... Qc4 {[%clk 0:00:04.3]} 49. Qf3 {[%clk 0:02:56.7]} 49... Qc2+
{[%clk 0:00:03.7]} 50. Re2 {[%clk 0:02:58.1]} 50... Qc4 {[%clk 0:00:03.4]} 51.
Qh3+ {[%clk 0:02:55.8]} 51... Kf6 {[%clk 0:00:03.7]} 52. Qe6+ {[%clk 0:02:57.3]}
52... Kg7 {[%clk 0:00:05.1]} 53. Qe7+ {[%clk 0:02:58.8]} 1-0

[Event "GrandPrix_30.05"]
[Site "Chess.com"]
[Date "2020.05.30"]
[Round "6"]
[White "Kiril1965"]
[Black "arminmusovic"]
[Result "0-1"]
[WhiteElo "2429"]
[BlackElo "2306"]
[TimeControl "600+2"]
[EndTime "10:55:29 PDT"]
[Termination "arminmusovic won by resignation"]

1. d4 {[%clk 0:09:57.4]} 1... d5 {[%clk 0:10:00.9]} 2. Bf4 {[%clk 0:09:49.7]}
2... c5 {[%clk 0:10:01.7]} 3. e3 {[%clk 0:09:49.7]} 3... Nc6 {[%clk 0:10:02.3]}
4. Nc3 {[%clk 0:09:48.5]} 4... a6 {[%clk 0:10:01.6]} 5. Nf3 {[%clk 0:09:25.6]}
5... Bg4 {[%clk 0:09:57.6]} 6. h3 {[%clk 0:09:16.3]} 6... Bxf3 {[%clk
0:09:53.8]} 7. Qxf3 {[%clk 0:09:16.7]} 7... e6 {[%clk 0:09:55.2]} 8. O-O-O
{[%clk 0:09:03.6]} 8... cxd4 {[%clk 0:09:51.9]} 9. exd4 {[%clk 0:09:03.5]} 9...
Bb4 {[%clk 0:09:36.6]} 10. Kb1 {[%clk 0:08:56.1]} 10... Qa5 {[%clk 0:09:22.4]}
11. Ne2 {[%clk 0:08:55.4]} 11... Nf6 {[%clk 0:08:58.2]} 12. Bh6 {[%clk 0:08:42]}
12... Ne4 {[%clk 0:08:36.6]} 13. Bxg7 {[%clk 0:08:26.9]} 13... Rg8 {[%clk
0:08:37.5]} 14. Bh6 {[%clk 0:08:24.6]} 14... Bd2 {[%clk 0:08:38.8]} 15. Be3
{[%clk 0:08:19.9]} 15... Rc8 {[%clk 0:08:09.1]} 16. Qf4 {[%clk 0:06:39.4]} 16...
Bxe3 {[%clk 0:07:36.5]} 17. Qxe3 {[%clk 0:06:37.6]} 17... Nb4 {[%clk 0:07:20.7]}
18. Nc1 {[%clk 0:05:46.1]} 18... Nxc2 {[%clk 0:06:09.4]} 19. Qe2 {[%clk
0:04:29.9]} 19... Na3+ {[%clk 0:05:32.3]} 20. Ka1 {[%clk 0:04:30]} 20... Nc2+
{[%clk 0:04:38.8]} 21. Kb1 {[%clk 0:04:27.8]} 21... Na3+ {[%clk 0:04:07.9]} 22.
Ka1 {[%clk 0:04:21.7]} 22... Rc2 {[%clk 0:03:53.4]} 23. Qe3 {[%clk 0:03:36.7]}
23... Nxf2 {[%clk 0:03:25.1]} 24. Be2 {[%clk 0:03:13.3]} 24... Nxd1 {[%clk
0:03:05.9]} 25. Rxd1 {[%clk 0:03:02.2]} 25... Rxg2 {[%clk 0:02:14.9]} 26. Bh5
{[%clk 0:02:30.7]} 26... Qb6 {[%clk 0:01:01.4]} 27. Qxa3 {[%clk 0:02:21.3]}
27... Qxb2+ {[%clk 0:00:57.9]} 28. Qxb2 {[%clk 0:02:21.1]} 28... Rxb2 {[%clk
0:00:59.8]} 29. a3 {[%clk 0:02:01.5]} 29... Rbd2 {[%clk 0:00:55.3]} 30. Rf1
{[%clk 0:02:01.4]} 30... Rgf2 {[%clk 0:00:55.7]} 31. Re1 {[%clk 0:01:57.2]}
31... Ke7 {[%clk 0:00:54.1]} 32. Nb3 {[%clk 0:01:53]} 32... Ra2+ {[%clk
0:00:54.4]} 33. Kb1 {[%clk 0:01:53.6]} 33... Rab2+ {[%clk 0:00:55.7]} 34. Kc1
{[%clk 0:01:54]} 34... Rxb3 {[%clk 0:00:57]} 35. a4 {[%clk 0:01:41.9]} 35...
Rc3+ {[%clk 0:00:51.1]} 36. Kb1 {[%clk 0:01:41.9]} 36... Rc4 {[%clk 0:00:51.1]}
37. a5 {[%clk 0:01:43]} 37... Rb4+ {[%clk 0:00:52]} 38. Kc1 {[%clk 0:01:42.9]}
38... Ra4 {[%clk 0:00:53.5]} 39. Kb1 {[%clk 0:01:43.6]} 39... Rxa5 {[%clk
0:00:55]} 40. Rc1 {[%clk 0:01:43.6]} 40... Rb5+ {[%clk 0:00:47.9]} 41. Ka1
{[%clk 0:01:44.6]} 41... Rbb2 {[%clk 0:00:41]} 0-1

[Event "GrandPrix_30.05"]
[Site "Chess.com"]
[Date "2020.05.30"]
[Round "6"]
[White "Haykos"]
[Black "KruHor"]
[Result "1/2-1/2"]
[WhiteElo "2281"]
[BlackElo "2451"]
[TimeControl "600+2"]
[EndTime "10:55:34 PDT"]
[Termination "Game drawn by agreement"]

1. e4 {[%clk 0:09:38.7]} 1... c5 {[%clk 0:09:55]} 2. Nf3 {[%clk 0:09:38.6]} 2...
d6 {[%clk 0:09:55.4]} 3. Bb5+ {[%clk 0:09:36.5]} 3... Nd7 {[%clk 0:09:51.9]} 4.
O-O {[%clk 0:09:37.1]} 4... a6 {[%clk 0:09:52.4]} 5. Bxd7+ {[%clk 0:09:36.7]}
5... Bxd7 {[%clk 0:09:52.5]} 6. c3 {[%clk 0:09:37.9]} 6... Nf6 {[%clk
0:09:36.7]} 7. Re1 {[%clk 0:09:35.6]} 7... e6 {[%clk 0:08:34.1]} 8. d4 {[%clk
0:09:27.1]} 8... Be7 {[%clk 0:08:20.9]} 9. Bg5 {[%clk 0:08:59]} 9... h6 {[%clk
0:08:04.6]} 10. Bh4 {[%clk 0:08:58.6]} 10... O-O {[%clk 0:07:06.9]} 11. dxc5
{[%clk 0:07:23]} 11... dxc5 {[%clk 0:07:05.5]} 12. Ne5 {[%clk 0:07:24.5]} 12...
Be8 {[%clk 0:06:34.4]} 13. Nd2 {[%clk 0:07:18.4]} 13... Nd7 {[%clk 0:06:17.4]}
14. Bxe7 {[%clk 0:05:26.9]} 14... Qxe7 {[%clk 0:06:16.6]} 15. Ndc4 {[%clk
0:04:46.4]} 15... Nxe5 {[%clk 0:06:03.7]} 16. Nxe5 {[%clk 0:04:48.3]} 16... Qc7
{[%clk 0:05:51.1]} 17. Ng4 {[%clk 0:03:38.6]} 17... f6 {[%clk 0:05:30.7]} 18.
Ne3 {[%clk 0:03:02.2]} 18... Rd8 {[%clk 0:05:15.2]} 19. Qb3 {[%clk 0:02:58.9]}
19... Qc6 {[%clk 0:04:16.4]} 20. f3 {[%clk 0:01:29.1]} 20... Bf7 {[%clk
0:03:56.1]} 21. Rad1 {[%clk 0:01:26.3]} 21... e5 {[%clk 0:02:20.7]} 22. Nd5
{[%clk 0:00:39.3]} 22... Kh8 {[%clk 0:02:13]} 23. c4 {[%clk 0:00:40.5]} 23... b5
{[%clk 0:02:12.2]} 24. Qd3 {[%clk 0:00:42]} 24... bxc4 {[%clk 0:02:03.9]} 25.
Qxc4 {[%clk 0:00:43]} 25... Rd6 {[%clk 0:01:59.1]} 26. Rd2 {[%clk 0:00:26.6]}
26... Rfd8 {[%clk 0:01:59.3]} 27. Red1 {[%clk 0:00:27.4]} 27... f5 {[%clk
0:01:44.3]} 28. b3 {[%clk 0:00:27.6]} 28... fxe4 {[%clk 0:01:42.3]} 29. fxe4
{[%clk 0:00:27.6]} 29... a5 {[%clk 0:01:41.3]} 30. h3 {[%clk 0:00:26.5]} 30...
Bg8 {[%clk 0:01:25.2]} 31. Qc3 {[%clk 0:00:27.4]} 31... Bxd5 {[%clk 0:01:08.8]}
32. Qxe5 {[%clk 0:00:28]} 32... Re8 {[%clk 0:01:08.5]} 33. exd5 {[%clk 0:00:29]}
33... Rxe5 {[%clk 0:01:07.5]} 34. dxc6 {[%clk 0:00:29.9]} 34... Rxc6 {[%clk
0:01:08.2]} 35. Rc2 {[%clk 0:00:30.6]} 35... a4 {[%clk 0:01:07.2]} 36. bxa4
{[%clk 0:00:30.9]} 36... Re4 {[%clk 0:01:07.6]} 37. Rdc1 {[%clk 0:00:30.9]}
1/2-1/2

[Event "GrandPrix_30.05"]
[Site "Chess.com"]
[Date "2020.05.30"]
[Round "6"]
[White "Azatic"]
[Black "Khvicha_Supatashvili"]
[Result "0-1"]
[WhiteElo "2330"]
[BlackElo "2289"]
[TimeControl "600+2"]
[EndTime "10:55:35 PDT"]
[Termination "Khvicha_Supatashvili won on time"]

1. e4 {[%clk 0:09:34]} 1... c5 {[%clk 0:09:58.6]} 2. Nf3 {[%clk 0:09:31]} 2...
Nc6 {[%clk 0:09:59.4]} 3. d4 {[%clk 0:09:30.7]} 3... cxd4 {[%clk 0:10:00]} 4.
Nxd4 {[%clk 0:09:32.6]} 4... Nf6 {[%clk 0:10:01.2]} 5. Nc3 {[%clk 0:09:33.3]}
5... d6 {[%clk 0:10:02.4]} 6. Bg5 {[%clk 0:09:29.5]} 6... e6 {[%clk 0:10:03.4]}
7. Qd2 {[%clk 0:09:29.6]} 7... Be7 {[%clk 0:10:04]} 8. O-O-O {[%clk 0:09:30.5]}
8... Nxd4 {[%clk 0:10:04.8]} 9. Qxd4 {[%clk 0:09:30.9]} 9... O-O {[%clk
0:10:05.9]} 10. f3 {[%clk 0:09:26]} 10... a6 {[%clk 0:09:53.2]} 11. h4 {[%clk
0:09:22.4]} 11... b5 {[%clk 0:09:51]} 12. Kb1 {[%clk 0:09:22.6]} 12... Bb7
{[%clk 0:09:32.6]} 13. Bd3 {[%clk 0:08:40.2]} 13... Rc8 {[%clk 0:09:27.1]} 14.
h5 {[%clk 0:07:35.9]} 14... e5 {[%clk 0:08:41.5]} 15. Qf2 {[%clk 0:07:17.4]}
15... Ng4 {[%clk 0:08:20.2]} 16. Qh4 {[%clk 0:06:04.7]} 16... Bxg5 {[%clk
0:08:16.2]} 17. Qxg4 {[%clk 0:06:05.5]} 17... Rxc3 {[%clk 0:08:14.8]} 18. bxc3
{[%clk 0:06:00.6]} 18... Bc8 {[%clk 0:08:15.6]} 19. Qg3 {[%clk 0:05:19.5]} 19...
Be6 {[%clk 0:08:14.9]} 20. h6 {[%clk 0:04:09.2]} 20... g6 {[%clk 0:08:13.9]} 21.
Kb2 {[%clk 0:04:02.2]} 21... Be3 {[%clk 0:06:54.7]} 22. a3 {[%clk 0:03:27.3]}
22... Qa5 {[%clk 0:06:34]} 23. Qe1 {[%clk 0:03:03.7]} 23... Qb6 {[%clk
0:06:02.2]} 24. Bf1 {[%clk 0:01:52.8]} 24... Bc5 {[%clk 0:04:58.1]} 25. Ra1
{[%clk 0:01:21.8]} 25... a5 {[%clk 0:04:54.6]} 26. Bd3 {[%clk 0:01:05.2]} 26...
b4 {[%clk 0:04:50]} 27. axb4 {[%clk 0:01:04.4]} 27... axb4 {[%clk 0:04:49.1]}
28. c4 {[%clk 0:00:58.3]} 28... Bf2 {[%clk 0:03:40.7]} 29. Qd2 {[%clk
0:00:57.5]} 29... Bd4+ {[%clk 0:02:06]} 30. Kb3 {[%clk 0:00:50.1]} 30... Bxa1
{[%clk 0:01:38]} 31. Rxa1 {[%clk 0:00:27.9]} 31... Qd4 {[%clk 0:01:39.9]} 32.
Qe1 {[%clk 0:00:19.3]} 32... Rc8 {[%clk 0:01:36]} 33. Ra2 {[%clk 0:00:07.4]}
33... Rxc4 {[%clk 0:01:24.4]} 0-1

[Event "GrandPrix_30.05"]
[Site "Chess.com"]
[Date "2020.05.30"]
[Round "6"]
[White "Firegrizzly"]
[Black "Kezin_Roman"]
[Result "1/2-1/2"]
[WhiteElo "2231"]
[BlackElo "2414"]
[TimeControl "600+2"]
[EndTime "10:55:37 PDT"]
[Termination "Game drawn - insufficient material"]

1. e4 {[%clk 0:10:01.9]} 1... c5 {[%clk 0:10:01.1]} 2. Nf3 {[%clk 0:10:02.3]}
2... e6 {[%clk 0:10:02.7]} 3. d4 {[%clk 0:10:02.5]} 3... cxd4 {[%clk 0:10:04.6]}
4. Nxd4 {[%clk 0:10:03.9]} 4... Nc6 {[%clk 0:10:06.3]} 5. Nc3 {[%clk 0:10:04.5]}
5... Qc7 {[%clk 0:10:07.6]} 6. Qd3 {[%clk 0:10:03.3]} 6... Nf6 {[%clk
0:10:07.4]} 7. Ndb5 {[%clk 0:09:54]} 7... Qb8 {[%clk 0:10:08.3]} 8. Qg3 {[%clk
0:09:52.5]} 8... d6 {[%clk 0:10:09.1]} 9. Be3 {[%clk 0:09:42.9]} 9... a6 {[%clk
0:09:50.6]} 10. Bb6 {[%clk 0:09:05.4]} 10... axb5 {[%clk 0:09:49.8]} 11. Nxb5
{[%clk 0:09:05.7]} 11... Ra4 {[%clk 0:06:32.4]} 12. O-O-O {[%clk 0:08:42.6]}
12... Nxe4 {[%clk 0:06:25.7]} 13. Qe3 {[%clk 0:08:27.9]} 13... Be7 {[%clk
0:05:35.1]} 14. Nc7+ {[%clk 0:08:23.5]} 14... Kf8 {[%clk 0:05:30.4]} 15. Bb5
{[%clk 0:08:04]} 15... Rb4 {[%clk 0:04:30.8]} 16. a3 {[%clk 0:08:01.3]} 16...
Rxb5 {[%clk 0:04:31.7]} 17. Nxb5 {[%clk 0:08:01.2]} 17... d5 {[%clk 0:04:32.8]}
18. Bc7 {[%clk 0:07:52.4]} 18... Qa8 {[%clk 0:04:33.5]} 19. f3 {[%clk
0:07:36.5]} 19... Bg5 {[%clk 0:03:08.3]} 20. Bf4 {[%clk 0:07:23.9]} 20... Bxf4
{[%clk 0:03:09]} 21. Qxf4 {[%clk 0:07:24.9]} 21... Nf2 {[%clk 0:03:10.6]} 22.
Qd6+ {[%clk 0:07:00.8]} 22... Kg8 {[%clk 0:03:11.3]} 23. Qc7 {[%clk 0:06:06.2]}
23... Qb8 {[%clk 0:02:26.4]} 24. Qxb8 {[%clk 0:06:06.7]} 24... Nxb8 {[%clk
0:02:28.3]} 25. Nd6 {[%clk 0:06:07.6]} 25... Nxd1 {[%clk 0:02:26.8]} 26. Rxd1
{[%clk 0:05:58.2]} 26... Bd7 {[%clk 0:02:28]} 27. Nxb7 {[%clk 0:05:57.5]} 27...
Kf8 {[%clk 0:02:29.1]} 28. c4 {[%clk 0:05:44]} 28... dxc4 {[%clk 0:02:26]} 29.
Na5 {[%clk 0:05:39.4]} 29... Ke7 {[%clk 0:02:17.2]} 30. Rd4 {[%clk 0:05:34.9]}
30... c3 {[%clk 0:02:05.4]} 31. b4 {[%clk 0:05:30.8]} 31... Rc8 {[%clk
0:02:04.6]} 32. Rc4 {[%clk 0:05:26.1]} 32... Rxc4 {[%clk 0:02:03.5]} 33. Nxc4
{[%clk 0:05:26.6]} 33... Bb5 {[%clk 0:02:00.8]} 34. Ne3 {[%clk 0:05:24.4]} 34...
Ba4 {[%clk 0:01:59.2]} 35. Nd1 {[%clk 0:05:19.6]} 35... Bxd1 {[%clk 0:01:58.4]}
36. Kxd1 {[%clk 0:05:20.2]} 36... Kd6 {[%clk 0:01:58]} 37. Kc2 {[%clk
0:05:22.1]} 37... Kd5 {[%clk 0:01:58.5]} 38. Kxc3 {[%clk 0:05:23.3]} 38... Nd7
{[%clk 0:01:58.6]} 39. a4 {[%clk 0:05:23.7]} 39... Kc6 {[%clk 0:01:45.6]} 40. h4
{[%clk 0:05:15.4]} 40... h5 {[%clk 0:01:44.8]} 41. Kc4 {[%clk 0:05:07.3]} 41...
Nb6+ {[%clk 0:01:44.1]} 42. Kb3 {[%clk 0:05:08.1]} 42... Nd5 {[%clk 0:01:45.6]}
43. g4 {[%clk 0:05:03.8]} 43... hxg4 {[%clk 0:01:29.1]} 44. fxg4 {[%clk
0:05:03.2]} 44... Ne3 {[%clk 0:01:30.6]} 45. g5 {[%clk 0:05:01.7]} 45... g6
{[%clk 0:01:31.9]} 46. Kc3 {[%clk 0:04:57.3]} 46... Nf5 {[%clk 0:01:31.9]} 47.
Kc4 {[%clk 0:04:55.6]} 47... Nxh4 {[%clk 0:01:32.1]} 48. a5 {[%clk 0:04:56.3]}
48... Nf3 {[%clk 0:01:32.1]} 49. b5+ {[%clk 0:04:58.2]} 49... Kb7 {[%clk
0:01:31.6]} 50. Kc5 {[%clk 0:04:58.6]} 50... Ne5 {[%clk 0:01:11.2]} 51. a6+
{[%clk 0:04:52.9]} 51... Ka7 {[%clk 0:01:10.2]} 52. Kd6 {[%clk 0:04:54]} 52...
Nc4+ {[%clk 0:01:08.1]} 53. Kc5 {[%clk 0:04:25.9]} 53... Na5 {[%clk 0:00:49]}
54. Kb4 {[%clk 0:04:10.1]} 54... Kb6 {[%clk 0:00:03.4]} 55. a7 {[%clk 0:04:12]}
55... Kxa7 {[%clk 0:00:04.8]} 56. Kxa5 {[%clk 0:04:13]} 56... Kb7 {[%clk
0:00:05.4]} 57. Kb4 {[%clk 0:04:06.7]} 57... Kb6 {[%clk 0:00:04.2]} 58. Kc4
{[%clk 0:04:07.5]} 58... Kb7 {[%clk 0:00:05.3]} 59. Kc5 {[%clk 0:04:07.2]} 59...
Kc7 {[%clk 0:00:06.6]} 60. Kb4 {[%clk 0:04:03]} 60... Kb6 {[%clk 0:00:07.8]} 61.
Kc4 {[%clk 0:04:03.9]} 61... Ka7 {[%clk 0:00:08.1]} 62. Kd4 {[%clk 0:04:00.4]}
62... Kb8 {[%clk 0:00:08.1]} 63. Ke5 {[%clk 0:03:58.8]} 63... Kb7 {[%clk
0:00:09.5]} 64. Kf6 {[%clk 0:03:49.5]} 64... Kb6 {[%clk 0:00:09.9]} 65. Kxf7
{[%clk 0:03:51.2]} 65... e5 {[%clk 0:00:11.4]} 66. Kxg6 {[%clk 0:03:52.5]} 66...
e4 {[%clk 0:00:13.3]} 67. Kf7 {[%clk 0:03:50.3]} 67... e3 {[%clk 0:00:15.2]} 68.
g6 {[%clk 0:03:51.9]} 68... e2 {[%clk 0:00:17.1]} 69. g7 {[%clk 0:03:53.2]}
69... e1=Q {[%clk 0:00:19]} 70. g8=Q {[%clk 0:03:54.5]} 70... Qf2+ {[%clk
0:00:20.3]} 71. Ke7 {[%clk 0:03:54.1]} 71... Qe3+ {[%clk 0:00:21.5]} 72. Qe6+
{[%clk 0:03:54.3]} 72... Qxe6+ {[%clk 0:00:22.4]} 73. Kxe6 {[%clk 0:03:56.2]}
73... Kxb5 {[%clk 0:00:24.3]} 1/2-1/2

[Event "GrandPrix_30.05"]
[Site "Chess.com"]
[Date "2020.05.30"]
[Round "6"]
[White "bernereremit"]
[Black "Happy1712Drummer"]
[Result "1-0"]
[WhiteElo "2115"]
[BlackElo "2129"]
[TimeControl "600+2"]
[EndTime "10:55:37 PDT"]
[Termination "bernereremit won by resignation"]

1. e4 {[%clk 0:09:58.5]} 1... c6 {[%clk 0:09:56.2]} 2. d4 {[%clk 0:09:57.5]}
2... d5 {[%clk 0:09:57.2]} 3. e5 {[%clk 0:09:56.6]} 3... Na6 {[%clk 0:09:56.2]}
4. Nd2 {[%clk 0:09:49.6]} 4... Nc7 {[%clk 0:09:53.6]} 5. Nb3 {[%clk 0:09:38]}
5... g6 {[%clk 0:09:55.5]} 6. Nf3 {[%clk 0:09:32.2]} 6... Bg7 {[%clk 0:09:55]}
7. Be2 {[%clk 0:09:32.9]} 7... Nh6 {[%clk 0:09:54.9]} 8. O-O {[%clk 0:09:32.2]}
8... f6 {[%clk 0:09:55.8]} 9. Re1 {[%clk 0:09:11.8]} 9... O-O {[%clk 0:09:52]}
10. Bf4 {[%clk 0:08:59.9]} 10... Ne6 {[%clk 0:09:48.9]} 11. Bg3 {[%clk
0:08:48.4]} 11... Nf5 {[%clk 0:09:29]} 12. Bd3 {[%clk 0:08:49.1]} 12... Nxg3
{[%clk 0:09:27.4]} 13. hxg3 {[%clk 0:08:33.8]} 13... f5 {[%clk 0:09:29.3]} 14.
c4 {[%clk 0:08:11.8]} 14... f4 {[%clk 0:09:18.8]} 15. g4 {[%clk 0:07:42.6]}
15... Nc7 {[%clk 0:09:15.1]} 16. g5 {[%clk 0:07:34.8]} 16... Bg4 {[%clk
0:09:07.6]} 17. Be2 {[%clk 0:07:20.7]} 17... e6 {[%clk 0:08:59.7]} 18. Rc1
{[%clk 0:07:08.9]} 18... dxc4 {[%clk 0:08:55]} 19. Rxc4 {[%clk 0:07:04.6]} 19...
Nd5 {[%clk 0:08:54.4]} 20. Nfd2 {[%clk 0:06:52.2]} 20... Bxe2 {[%clk 0:08:44.8]}
21. Qxe2 {[%clk 0:06:54.1]} 21... Qxg5 {[%clk 0:08:37.7]} 22. Ne4 {[%clk
0:06:31.1]} 22... Qe7 {[%clk 0:08:35.8]} 23. Qg4 {[%clk 0:06:14.2]} 23... Rf5
{[%clk 0:08:32.2]} 24. Nbc5 {[%clk 0:06:01.8]} 24... Raf8 {[%clk 0:08:26.6]} 25.
a3 {[%clk 0:05:52.8]} 25... Kh8 {[%clk 0:08:21.8]} 26. Nd6 {[%clk 0:05:42.8]}
26... f3 {[%clk 0:08:14.8]} 27. Nxf5 {[%clk 0:05:38.4]} 27... Rxf5 {[%clk
0:08:12.6]} 28. Re4 {[%clk 0:05:03.9]} 28... fxg2 {[%clk 0:07:57.8]} 29. f4
{[%clk 0:04:45.3]} 29... g5 {[%clk 0:07:50.6]} 30. Rc2 {[%clk 0:04:27.2]} 30...
gxf4 {[%clk 0:07:27]} 31. Rxg2 {[%clk 0:04:11.6]} 31... f3 {[%clk 0:07:04.1]}
32. Rg3 {[%clk 0:03:48.5]} 32... f2+ {[%clk 0:06:34.7]} 33. Kf1 {[%clk
0:03:48.2]} 33... Qf7 {[%clk 0:06:20.2]} 34. Nxe6 {[%clk 0:03:40.2]} 34... Bh6
{[%clk 0:05:53.6]} 35. Nd8 {[%clk 0:03:00.7]} 35... Qg6 {[%clk 0:05:38.6]} 36.
Qxg6 {[%clk 0:01:51.3]} 36... hxg6 {[%clk 0:05:40.5]} 37. e6 {[%clk 0:01:52.8]}
37... Ne7 {[%clk 0:04:59.6]} 38. Re2 {[%clk 0:01:47.4]} 38... Rd5 {[%clk
0:04:52.3]} 39. Nf7+ {[%clk 0:01:42.3]} 39... Kg7 {[%clk 0:04:54.2]} 40. Rxf2
{[%clk 0:01:32]} 40... Rxd4 {[%clk 0:04:53]} 41. Nxh6 {[%clk 0:01:25.3]} 41...
Kxh6 {[%clk 0:04:52.6]} 42. Rf7 {[%clk 0:01:21.5]} 42... Nf5 {[%clk 0:04:53.2]}
43. Rh3+ {[%clk 0:00:57.8]} 43... Kg5 {[%clk 0:04:52.8]} 44. Rxb7 {[%clk
0:00:57.4]} 44... Rf4+ {[%clk 0:04:53.4]} 45. Kg1 {[%clk 0:00:52]} 45... Rg4+
{[%clk 0:04:52.6]} 46. Kh2 {[%clk 0:00:53.1]} 46... a5 {[%clk 0:04:53.1]} 47.
Rh8 {[%clk 0:00:48.9]} 47... Re4 {[%clk 0:04:52.4]} 48. Ra8 {[%clk 0:00:41.9]}
48... Kg4 {[%clk 0:04:49.8]} 49. Rxa5 {[%clk 0:00:32.9]} 49... Re2+ {[%clk
0:04:48.1]} 50. Kg1 {[%clk 0:00:33.7]} 50... Rxe6 {[%clk 0:04:46.5]} 51. Kf2
{[%clk 0:00:26.7]} 51... Nd6 {[%clk 0:04:10]} 52. Rb4+ {[%clk 0:00:25.6]} 52...
Kh3 {[%clk 0:04:03.4]} 53. Ra8 {[%clk 0:00:19.5]} 53... Rf6+ {[%clk 0:03:42.1]}
54. Ke3 {[%clk 0:00:18.7]} 54... g5 {[%clk 0:03:37]} 55. a4 {[%clk 0:00:17.5]}
55... g4 {[%clk 0:03:36.5]} 56. Rh8+ {[%clk 0:00:17.4]} 56... Kg2 {[%clk
0:03:34.5]} 57. Rxg4+ {[%clk 0:00:17.1]} 57... Kf1 {[%clk 0:03:32.1]} 58. Rf4+
{[%clk 0:00:18.6]} 58... Rxf4 {[%clk 0:03:31.9]} 59. Kxf4 {[%clk 0:00:20.5]}
59... Nc4 {[%clk 0:03:33.8]} 60. b3 {[%clk 0:00:20.4]} 60... Na5 {[%clk
0:03:33.9]} 61. b4 {[%clk 0:00:20.6]} 61... Nc4 {[%clk 0:03:35.8]} 62. a5 {[%clk
0:00:20.1]} 62... Nd6 {[%clk 0:03:35.9]} 63. a6 {[%clk 0:00:20.6]} 63... Nb5
{[%clk 0:03:37.8]} 64. Ke4 {[%clk 0:00:20.8]} 64... Ke2 {[%clk 0:03:39]} 65. Rb8
{[%clk 0:00:20]} 65... Nd6+ {[%clk 0:03:38.8]} 66. Kd4 {[%clk 0:00:19.8]} 66...
Nc4 {[%clk 0:03:40.7]} 67. Kxc4 {[%clk 0:00:20.4]} 1-0